[Event "Titled Tuesday Blitz July 18 Early 2023"]
[White "Sarana, Alexey"]
[Black "Mohamed Anees M"]
[WhiteFideId "24133795"]
[BlackFideId "35065815"]
[WhiteElo "3022"]
[BlackElo "2630"]
[Result "1-0"]
[Round "2"]
[TimeControl "180+2"]
[Date "2023.07.18"]
[WhiteClock "0:01:09"]
[BlackClock "0:00:25"]
[Board "9"]

1. d4 {[%clk 0:02:55]}  d5 {[%clk 0:02:59]} 2. c4 {[%clk 0:02:54]}  c6 {[%clk 0:02:59]} 3. Nf3 {[%clk 0:02:54]}  Nf6 {[%clk 0:03:00]} 4. Nc3 {[%clk 0:02:54]}  e6 {[%clk 0:03:00]} 5. e3 {[%clk 0:02:54]}  Nbd7 {[%clk 0:03:01]} 6. Qc2 {[%clk 0:02:55]}  Bd6 {[%clk 0:03:01]} 7. Be2 {[%clk 0:02:55]}  O-O {[%clk 0:02:56]} 8. O-O {[%clk 0:02:55]}  b6 {[%clk 0:02:56]} 9. e4 {[%clk 0:02:52]}  dxe4 {[%clk 0:02:42]} 10. Nxe4 {[%clk 0:02:53]}  Be7 {[%clk 0:02:25]} 11. Bf4 {[%clk 0:02:43]}  Nxe4 {[%clk 0:02:19]} 12. Qxe4 {[%clk 0:02:44]}  Bb7 {[%clk 0:02:20]} 13. Rfd1 {[%clk 0:02:43]}  Nf6 {[%clk 0:02:18]} 14. Qc2 {[%clk 0:02:43]}  h6 {[%clk 0:02:17]} 15. Ne5 {[%clk 0:02:38]}  Bd6 {[%clk 0:02:13]} 16. Bf3 {[%clk 0:02:34]}  Qc7 {[%clk 0:02:12]} 17. b4 {[%clk 0:02:16]}  Nd7 {[%clk 0:01:08]} 18. Nxd7 {[%clk 0:01:57]}  Qxd7 {[%clk 0:01:07]} 19. Bxd6 {[%clk 0:01:57]}  Qxd6 {[%clk 0:01:08]} 20. c5 {[%clk 0:01:57]}  Qc7 {[%clk 0:01:04]} 21. a4 {[%clk 0:01:57]}  Rfd8 {[%clk 0:01:04]} 22. Qc3 {[%clk 0:01:54]}  a5 {[%clk 0:00:59]} 23. Rab1 {[%clk 0:01:44]}  axb4 {[%clk 0:00:57]} 24. Qxb4 {[%clk 0:01:45]}  Rdb8 {[%clk 0:00:39]} 25. cxb6 {[%clk 0:01:45]}  Qd8 {[%clk 0:00:38]} 26. a5 {[%clk 0:01:44]}  Ra6 {[%clk 0:00:36]} 27. Qc5 {[%clk 0:01:43]}  Rba8 {[%clk 0:00:35]} 28. Ra1 {[%clk 0:01:43]}  Qg5 {[%clk 0:00:30]} 29. h4 {[%clk 0:01:34]}  Qf5 {[%clk 0:00:28]} 30. Qxf5 {[%clk 0:01:17]}  exf5 {[%clk 0:00:29]} 31. Re1 {[%clk 0:01:17]}  Kf8 {[%clk 0:00:27]} 32. Rac1 {[%clk 0:01:06]}  Rxa5 {[%clk 0:00:26]} 33. Bxc6 {[%clk 0:01:06]}  Bxc6 {[%clk 0:00:27]} 34. Rxc6 {[%clk 0:01:07]}  Rd5 {[%clk 0:00:27]} 35. b7 {[%clk 0:01:06]}  Rb8 {[%clk 0:00:26]} 36. Rc8+ {[%clk 0:01:07]}  Rd8 {[%clk 0:00:27]} 37. Rxd8+ {[%clk 0:01:07]}  Rxd8 {[%clk 0:00:28]} 38. Rc1 {[%clk 0:01:08]}  Ke7 {[%clk 0:00:25]} 39. Rc8 {[%clk 0:01:09]} 1-0


[Site "https://www.chess.com"]

[Event "Titled Tuesday Blitz July 18 Early 2023"]
[White "Chen, Justin"]
[Black "Duda, Jan-Krzysztof"]
[WhiteFideId "2098199"]
[BlackFideId "1170546"]
[WhiteElo "2623"]
[BlackElo "3017"]
[Result "0-1"]
[Round "2"]
[TimeControl "180+2"]
[Date "2023.07.18"]
[WhiteClock "0:00:56"]
[BlackClock "0:00:58"]
[Board "10"]

1. d4 {[%clk 0:03:00]}  e6 {[%clk 0:03:00]} 2. e4 {[%clk 0:02:58]}  d5 {[%clk 0:03:01]} 3. e5 {[%clk 0:02:58]}  c5 {[%clk 0:03:00]} 4. c3 {[%clk 0:02:59]}  Nc6 {[%clk 0:03:00]} 5. Nf3 {[%clk 0:03:00]}  Bd7 {[%clk 0:03:01]} 6. Bd3 {[%clk 0:02:57]}  cxd4 {[%clk 0:02:55]} 7. cxd4 {[%clk 0:02:57]}  Qb6 {[%clk 0:02:55]} 8. Be2 {[%clk 0:02:48]}  Nge7 {[%clk 0:02:50]} 9. b3 {[%clk 0:02:35]}  Nf5 {[%clk 0:02:49]} 10. Bb2 {[%clk 0:02:36]}  Bb4+ {[%clk 0:02:48]} 11. Kf1 {[%clk 0:02:36]}  h5 {[%clk 0:02:42]} 12. g3 {[%clk 0:02:30]}  Be7 {[%clk 0:02:21]} 13. Kg2 {[%clk 0:02:29]}  g5 {[%clk 0:02:20]} 14. h3 {[%clk 0:02:29]}  O-O-O {[%clk 0:02:20]} 15. Na3 {[%clk 0:02:18]}  g4 {[%clk 0:02:17]} 16. Ne1 {[%clk 0:02:11]}  Nfxd4 {[%clk 0:02:11]} 17. Bd3 {[%clk 0:01:57]}  Nxe5 {[%clk 0:02:06]} 18. Bf1 {[%clk 0:01:52]}  Nec6 {[%clk 0:01:48]} 19. Rc1 {[%clk 0:01:32]}  e5 {[%clk 0:01:43]} 20. Nac2 {[%clk 0:01:23]}  gxh3+ {[%clk 0:01:36]} 21. Kg1 {[%clk 0:01:21]}  Bg4 {[%clk 0:01:34]} 22. Qd2 {[%clk 0:01:16]}  Nxc2 {[%clk 0:01:16]} 23. Nxc2 {[%clk 0:01:14]}  d4 {[%clk 0:01:11]} 24. Bxh3 {[%clk 0:01:05]}  Bxh3 {[%clk 0:01:09]} 25. Rxh3 {[%clk 0:01:06]}  h4 {[%clk 0:01:09]} 26. gxh4 {[%clk 0:01:03]}  Rdg8+ {[%clk 0:01:06]} 27. Kf1 {[%clk 0:01:00]}  Rxh4 {[%clk 0:01:03]} 28. Rxh4 {[%clk 0:00:58]}  Qb5+ {[%clk 0:01:01]} 29. Qe2 {[%clk 0:00:58]}  Rg1+ {[%clk 0:00:57]} 30. Kxg1 {[%clk 0:00:56]}  Qxe2 {[%clk 0:00:58]} 0-1


[Site "https://www.chess.com"]

[Event "Titled Tuesday Blitz July 18 Early 2023"]
[White "Kuzhilniy, Oleksandr"]
[Black "Kamsky, Gata"]
[WhiteFideId "34110500"]
[BlackFideId "2000024"]
[WhiteElo "2621"]
[BlackElo "3011"]
[Result "1/2-1/2"]
[Round "2"]
[TimeControl "180+2"]
[Date "2023.07.18"]
[WhiteClock "0:00:29"]
[BlackClock "0:00:21"]
[Board "11"]

1. e4 {[%clk 0:03:00]}  c5 {[%clk 0:02:55]} 2. Nf3 {[%clk 0:03:01]}  e6 {[%clk 0:02:55]} 3. g3 {[%clk 0:03:00]}  Nc6 {[%clk 0:02:47]} 4. Bg2 {[%clk 0:02:59]}  d5 {[%clk 0:02:48]} 5. exd5 {[%clk 0:02:59]}  Qxd5 {[%clk 0:02:47]} 6. O-O {[%clk 0:02:56]}  Nf6 {[%clk 0:02:47]} 7. d3 {[%clk 0:02:44]}  Be7 {[%clk 0:02:44]} 8. a4 {[%clk 0:02:44]}  O-O {[%clk 0:02:42]} 9. Na3 {[%clk 0:02:45]}  Qd8 {[%clk 0:02:37]} 10. Nc4 {[%clk 0:02:44]}  Bd7 {[%clk 0:02:13]} 11. Nfe5 {[%clk 0:02:41]}  Rc8 {[%clk 0:02:12]} 12. Re1 {[%clk 0:02:37]}  b6 {[%clk 0:02:07]} 13. Nxd7 {[%clk 0:02:34]}  Qxd7 {[%clk 0:02:06]} 14. c3 {[%clk 0:02:25]}  Rfd8 {[%clk 0:02:05]} 15. Qe2 {[%clk 0:02:19]}  Nd5 {[%clk 0:02:00]} 16. Bd2 {[%clk 0:02:09]}  Bf6 {[%clk 0:01:58]} 17. Rad1 {[%clk 0:02:07]}  g6 {[%clk 0:01:55]} 18. h4 {[%clk 0:02:06]}  h5 {[%clk 0:01:47]} 19. Qf3 {[%clk 0:02:01]}  Bg7 {[%clk 0:01:45]} 20. Bg5 {[%clk 0:02:01]}  Re8 {[%clk 0:01:43]} 21. Qe2 {[%clk 0:01:56]}  Rb8 {[%clk 0:01:37]} 22. Qc2 {[%clk 0:01:50]}  a6 {[%clk 0:01:36]} 23. Ne3 {[%clk 0:01:49]}  Nxe3 {[%clk 0:01:30]} 24. Bxe3 {[%clk 0:01:50]}  Rbc8 {[%clk 0:01:24]} 25. Qb3 {[%clk 0:01:49]}  Qa7 {[%clk 0:01:21]} 26. Qc4 {[%clk 0:01:45]}  Ne5 {[%clk 0:01:18]} 27. Qe4 {[%clk 0:01:43]}  Ng4 {[%clk 0:01:17]} 28. Bg5 {[%clk 0:01:41]}  b5 {[%clk 0:01:14]} 29. axb5 {[%clk 0:01:41]}  axb5 {[%clk 0:01:14]} 30. Ra1 {[%clk 0:01:41]}  Qd7 {[%clk 0:01:13]} 31. Ra5 {[%clk 0:01:38]}  b4 {[%clk 0:01:12]} 32. Rc1 {[%clk 0:01:06]}  bxc3 {[%clk 0:01:11]} 33. bxc3 {[%clk 0:01:06]}  Qc7 {[%clk 0:01:03]} 34. Rb5 {[%clk 0:01:03]}  Rb8 {[%clk 0:01:02]} 35. Rxb8 {[%clk 0:00:50]}  Rxb8 {[%clk 0:00:58]} 36. d4 {[%clk 0:00:49]}  cxd4 {[%clk 0:00:55]} 37. cxd4 {[%clk 0:00:49]}  Qb6 {[%clk 0:00:55]} 38. Be3 {[%clk 0:00:41]}  Nxe3 {[%clk 0:00:53]} 39. fxe3 {[%clk 0:00:42]}  Qd6 {[%clk 0:00:49]} 40. Kf2 {[%clk 0:00:38]}  Rb2+ {[%clk 0:00:48]} 41. Rc2 {[%clk 0:00:38]}  Rb8 {[%clk 0:00:47]} 42. Qc6 {[%clk 0:00:31]}  Qd8 {[%clk 0:00:45]} 43. Qc7 {[%clk 0:00:30]}  Qf8 {[%clk 0:00:40]} 44. Bb7 {[%clk 0:00:26]}  Rd8 {[%clk 0:00:37]} 45. Qxd8 {[%clk 0:00:26]}  Qxd8 {[%clk 0:00:37]} 46. Rc8 {[%clk 0:00:27]}  Qxc8 {[%clk 0:00:36]} 47. Bxc8 {[%clk 0:00:28]}  Kf8 {[%clk 0:00:36]} 48. Kf3 {[%clk 0:00:28]}  Ke7 {[%clk 0:00:37]} 49. Ba6 {[%clk 0:00:28]}  Kd6 {[%clk 0:00:37]} 50. Bc4 {[%clk 0:00:28]}  Bf6 {[%clk 0:00:37]} 51. Ba2 {[%clk 0:00:28]}  Bd8 {[%clk 0:00:37]} 52. Bb3 {[%clk 0:00:28]}  Ba5 {[%clk 0:00:37]} 53. Ba2 {[%clk 0:00:28]}  Be1 {[%clk 0:00:37]} 54. Bb3 {[%clk 0:00:28]}  Ke7 {[%clk 0:00:37]} 55. Ba2 {[%clk 0:00:28]}  Kf6 {[%clk 0:00:19]} 56. Bb3 {[%clk 0:00:28]}  Ke7 {[%clk 0:00:20]} 57. Ba2 {[%clk 0:00:29]}  Kf6 {[%clk 0:00:20]} 58. Bb3 {[%clk 0:00:29]}  Ke7 {[%clk 0:00:21]} 1/2-1/2


[Site "https://www.chess.com"]

[Event "Titled Tuesday Blitz July 18 Early 2023"]
[White "Movahed, Sina"]
[Black "Borgaonkar Akshay"]
[WhiteFideId "42520835"]
[BlackFideId "25639110"]
[WhiteElo "3006"]
[BlackElo "2612"]
[Result "1/2-1/2"]
[Round "2"]
[TimeControl "180+2"]
[Date "2023.07.18"]
[WhiteClock "0:00:13"]
[BlackClock "0:00:07"]
[Board "12"]

1. Nf3 {[%clk 0:03:00]}  Nf6 {[%clk 0:02:59]} 2. g3 {[%clk 0:03:00]}  g6 {[%clk 0:02:59]} 3. Bg2 {[%clk 0:03:01]}  Bg7 {[%clk 0:03:00]} 4. O-O {[%clk 0:03:02]}  O-O {[%clk 0:03:01]} 5. c4 {[%clk 0:03:03]}  d6 {[%clk 0:02:59]} 6. d4 {[%clk 0:03:03]}  c6 {[%clk 0:02:59]} 7. Nc3 {[%clk 0:03:02]}  Bf5 {[%clk 0:03:00]} 8. b3 {[%clk 0:03:02]}  Ne4 {[%clk 0:03:00]} 9. Bb2 {[%clk 0:03:02]}  Nxc3 {[%clk 0:02:59]} 10. Bxc3 {[%clk 0:03:03]}  d5 {[%clk 0:02:59]} 11. e3 {[%clk 0:02:59]}  Bg4 {[%clk 0:02:47]} 12. h3 {[%clk 0:02:57]}  Bxf3 {[%clk 0:02:42]} 13. Bxf3 {[%clk 0:02:56]}  e6 {[%clk 0:02:42]} 14. h4 {[%clk 0:02:55]}  h5 {[%clk 0:02:41]} 15. Rb1 {[%clk 0:02:52]}  Nd7 {[%clk 0:02:41]} 16. Qc2 {[%clk 0:02:51]}  Re8 {[%clk 0:02:40]} 17. c5 {[%clk 0:02:47]}  e5 {[%clk 0:02:38]} 18. b4 {[%clk 0:02:46]}  exd4 {[%clk 0:02:22]} 19. exd4 {[%clk 0:02:45]}  b5 {[%clk 0:02:19]} 20. cxb6 {[%clk 0:02:40]}  Nxb6 {[%clk 0:02:17]} 21. Rfe1 {[%clk 0:02:36]}  Nc4 {[%clk 0:02:16]} 22. Kg2 {[%clk 0:02:35]}  Na3 {[%clk 0:02:12]} 23. Qd3 {[%clk 0:02:32]}  Nxb1 {[%clk 0:02:11]} 24. Rxb1 {[%clk 0:02:33]}  Qc7 {[%clk 0:02:04]} 25. b5 {[%clk 0:02:30]}  cxb5 {[%clk 0:02:01]} 26. Bxd5 {[%clk 0:02:19]}  Rad8 {[%clk 0:02:00]} 27. Rxb5 {[%clk 0:02:17]}  Qd6 {[%clk 0:01:12]} 28. Bf3 {[%clk 0:01:47]}  Bxd4 {[%clk 0:00:48]} 29. Rd5 {[%clk 0:01:46]}  Qxd5 {[%clk 0:00:47]} 30. Bxd5 {[%clk 0:01:47]}  Rxd5 {[%clk 0:00:48]} 31. Bxd4 {[%clk 0:01:46]}  Red8 {[%clk 0:00:48]} 32. Qa6 {[%clk 0:01:44]}  Rxd4 {[%clk 0:00:49]} 33. Qxa7 {[%clk 0:01:44]}  Rd2 {[%clk 0:00:47]} 34. a4 {[%clk 0:01:42]}  R8d6 {[%clk 0:00:33]} 35. a5 {[%clk 0:01:25]}  Kg7 {[%clk 0:00:31]} 36. Kg1 {[%clk 0:01:02]}  Rd1+ {[%clk 0:00:29]} 37. Kg2 {[%clk 0:01:02]}  R1d2 {[%clk 0:00:30]} 38. Qe3 {[%clk 0:01:00]}  Ra2 {[%clk 0:00:22]} 39. Qc3+ {[%clk 0:00:34]}  Rf6 {[%clk 0:00:22]} 40. Qc5 {[%clk 0:00:35]}  Rf5 {[%clk 0:00:21]} 41. Qd4+ {[%clk 0:00:30]}  Kh7 {[%clk 0:00:22]} 42. a6 {[%clk 0:00:27]}  Rxa6 {[%clk 0:00:21]} 43. f4 {[%clk 0:00:28]}  Ra3 {[%clk 0:00:20]} 44. Qc4 {[%clk 0:00:26]}  Raa5 {[%clk 0:00:18]} 45. Kh3 {[%clk 0:00:26]}  Rac5 {[%clk 0:00:18]} 46. Qb3 {[%clk 0:00:26]}  Rcd5 {[%clk 0:00:16]} 47. Qc3 {[%clk 0:00:26]}  Rd1 {[%clk 0:00:13]} 48. Qb3 {[%clk 0:00:24]}  Rfd5 {[%clk 0:00:12]} 49. Qb7 {[%clk 0:00:23]}  Kg7 {[%clk 0:00:12]} 50. Qb2+ {[%clk 0:00:23]}  Kh7 {[%clk 0:00:11]} 51. Qb7 {[%clk 0:00:23]}  Rd7 {[%clk 0:00:09]} 52. Qb3 {[%clk 0:00:23]}  R1d3 {[%clk 0:00:10]} 53. Qa2 {[%clk 0:00:20]}  Re3 {[%clk 0:00:07]} 54. Kh2 {[%clk 0:00:16]}  Kg7 {[%clk 0:00:05]} 55. Qb2+ {[%clk 0:00:16]}  Kh7 {[%clk 0:00:06]} 56. Qa2 {[%clk 0:00:16]}  Red3 {[%clk 0:00:06]} 57. Kh3 {[%clk 0:00:16]}  Rd2 {[%clk 0:00:07]} 58. Qc4 {[%clk 0:00:15]}  R2d4 {[%clk 0:00:06]} 59. Qb3 {[%clk 0:00:15]}  Re7 {[%clk 0:00:06]} 60. Qa3 {[%clk 0:00:14]}  Rde4 {[%clk 0:00:06]} 61. Qb3 {[%clk 0:00:14]}  Re3 {[%clk 0:00:06]} 62. Qb4 {[%clk 0:00:14]}  R7e4 {[%clk 0:00:06]} 63. Qb8 {[%clk 0:00:12]}  Re7 {[%clk 0:00:02]} 64. Qb4 {[%clk 0:00:11]}  R3e4 {[%clk 0:00:02]} 65. Qd6 {[%clk 0:00:11]}  R4e6 {[%clk 0:00:02]} 66. Qd5 {[%clk 0:00:11]}  Re3 {[%clk 0:00:02]} 67. f5 {[%clk 0:00:11]}  R3e5 {[%clk 0:00:01]} 68. fxg6+ {[%clk 0:00:09]}  fxg6 {[%clk 0:00:02]} 69. Qd6 {[%clk 0:00:10]}  R5e6 {[%clk 0:00:02]} 70. Qf4 {[%clk 0:00:09]}  Rg7 {[%clk 0:00:02]} 71. Qg5 {[%clk 0:00:09]}  Ree7 {[%clk 0:00:03]} 72. Qf4 {[%clk 0:00:10]}  Ref7 {[%clk 0:00:04]} 73. Qg5 {[%clk 0:00:10]}  Rf5 {[%clk 0:00:05]} 74. Qe3 {[%clk 0:00:11]}  Rff7 {[%clk 0:00:05]} 75. Qd3 {[%clk 0:00:12]}  Rf5 {[%clk 0:00:06]} 76. Qe3 {[%clk 0:00:12]}  Rff7 {[%clk 0:00:06]} 77. Qe4 {[%clk 0:00:12]}  Rf5 {[%clk 0:00:07]} 78. Qe3 {[%clk 0:00:13]} 1/2-1/2


[Site "https://www.chess.com"]

[Event "Titled Tuesday Blitz July 18 Early 2023"]
[White "Kramnik, Vladimir"]
[Black "Fiorito, Francisco"]
[WhiteFideId "4101588"]
[BlackFideId "180165"]
[WhiteElo "2974"]
[BlackElo "2608"]
[Result "1-0"]
[Round "2"]
[TimeControl "180+2"]
[Date "2023.07.18"]
[WhiteClock "0:01:27"]
[BlackClock "0:00:13"]
[Board "16"]

1. Nf3 {[%clk 0:03:00]}  Nf6 {[%clk 0:02:59]} 2. g3 {[%clk 0:03:00]}  b6 {[%clk 0:03:00]} 3. c4 {[%clk 0:02:55]}  Bb7 {[%clk 0:02:59]} 4. d4 {[%clk 0:02:55]}  g6 {[%clk 0:02:59]} 5. Nc3 {[%clk 0:02:52]}  Ne4 {[%clk 0:02:50]} 6. Nxe4 {[%clk 0:02:51]}  Bxe4 {[%clk 0:02:50]} 7. Bh3 {[%clk 0:02:51]}  Bg7 {[%clk 0:02:36]} 8. O-O {[%clk 0:02:50]}  O-O {[%clk 0:02:27]} 9. Re1 {[%clk 0:02:30]}  d6 {[%clk 0:02:12]} 10. d5 {[%clk 0:02:27]}  Bxf3 {[%clk 0:02:00]} 11. exf3 {[%clk 0:02:26]}  Nd7 {[%clk 0:01:59]} 12. Bg5 {[%clk 0:02:21]}  Bf6 {[%clk 0:01:47]} 13. Bxf6 {[%clk 0:02:12]}  Nxf6 {[%clk 0:01:48]} 14. Qd4 {[%clk 0:02:06]}  Re8 {[%clk 0:01:42]} 15. Re3 {[%clk 0:02:05]}  a6 {[%clk 0:01:04]} 16. Rae1 {[%clk 0:01:52]}  b5 {[%clk 0:01:04]} 17. b3 {[%clk 0:01:47]}  Rb8 {[%clk 0:00:57]} 18. f4 {[%clk 0:01:43]}  bxc4 {[%clk 0:00:51]} 19. Qxc4 {[%clk 0:01:40]}  Rb5 {[%clk 0:00:51]} 20. Bg2 {[%clk 0:01:39]}  Nd7 {[%clk 0:00:46]} 21. b4 {[%clk 0:01:34]}  Nb6 {[%clk 0:00:24]} 22. Qd4 {[%clk 0:01:33]}  a5 {[%clk 0:00:20]} 23. a3 {[%clk 0:01:31]}  axb4 {[%clk 0:00:20]} 24. axb4 {[%clk 0:01:31]}  Nd7 {[%clk 0:00:17]} 25. h4 {[%clk 0:01:29]}  Nf6 {[%clk 0:00:13]} 26. Qxf6 {[%clk 0:01:27]} 1-0


[Site "https://www.chess.com"]

[Event "Titled Tuesday Blitz July 18 Early 2023"]
[White "Svane, Rasmus"]
[Black "Sanchez Alvares, Kelvin Antonio"]
[WhiteFideId "4657101"]
[BlackFideId "3906680"]
[WhiteElo "2963"]
[BlackElo "2605"]
[Result "1-0"]
[Round "2"]
[TimeControl "180+2"]
[Date "2023.07.18"]
[WhiteClock "0:00:05"]
[BlackClock "0:00:17"]
[Board "18"]

1. Nf3 {[%clk 0:03:00]}  Nf6 {[%clk 0:02:59]} 2. g3 {[%clk 0:03:00]}  b6 {[%clk 0:02:59]} 3. Bg2 {[%clk 0:03:01]}  Bb7 {[%clk 0:03:00]} 4. O-O {[%clk 0:03:02]}  e6 {[%clk 0:03:00]} 5. d4 {[%clk 0:03:02]}  c5 {[%clk 0:03:00]} 6. c4 {[%clk 0:02:59]}  cxd4 {[%clk 0:03:00]} 7. Qxd4 {[%clk 0:02:59]}  Nc6 {[%clk 0:03:00]} 8. Qf4 {[%clk 0:02:59]}  Ne7 {[%clk 0:03:01]} 9. b3 {[%clk 0:02:39]}  Ng6 {[%clk 0:03:00]} 10. Qd2 {[%clk 0:02:39]}  Bc5 {[%clk 0:02:50]} 11. Bb2 {[%clk 0:02:38]}  O-O {[%clk 0:02:50]} 12. Nc3 {[%clk 0:02:38]}  d5 {[%clk 0:02:46]} 13. cxd5 {[%clk 0:02:34]}  Nxd5 {[%clk 0:02:45]} 14. Ne4 {[%clk 0:02:33]}  Be7 {[%clk 0:02:43]} 15. Rfd1 {[%clk 0:02:30]}  Rc8 {[%clk 0:02:28]} 16. h4 {[%clk 0:02:28]}  h5 {[%clk 0:02:20]} 17. Rac1 {[%clk 0:02:20]}  Rxc1 {[%clk 0:02:19]} 18. Qxc1 {[%clk 0:02:21]}  Qc8 {[%clk 0:02:18]} 19. Qa1 {[%clk 0:02:20]}  f6 {[%clk 0:02:11]} 20. Bh3 {[%clk 0:01:59]}  Kf7 {[%clk 0:02:09]} 21. Nd4 {[%clk 0:01:44]}  Ndf4 {[%clk 0:01:58]} 22. gxf4 {[%clk 0:01:37]}  Nxf4 {[%clk 0:01:59]} 23. Bxe6+ {[%clk 0:00:33]}  Nxe6 {[%clk 0:01:59]} 24. Ng3 {[%clk 0:00:32]}  Nxd4 {[%clk 0:01:43]} 25. Bxd4 {[%clk 0:00:23]}  Qh3 {[%clk 0:01:35]} 26. e4 {[%clk 0:00:22]}  Bd6 {[%clk 0:01:29]} 27. Qc3 {[%clk 0:00:19]}  Rc8 {[%clk 0:01:27]} 28. Qf3 {[%clk 0:00:19]}  Qxh4 {[%clk 0:01:19]} 29. Bxf6 {[%clk 0:00:10]}  Qf4 {[%clk 0:00:52]} 30. Qxf4 {[%clk 0:00:05]}  Bxf4 {[%clk 0:00:53]} 31. Nxh5 {[%clk 0:00:06]}  Bh6 {[%clk 0:00:50]} 32. Rd7+ {[%clk 0:00:06]}  Kg6 {[%clk 0:00:51]} 33. Rxb7 {[%clk 0:00:06]}  gxf6 {[%clk 0:00:51]} 34. Ng3 {[%clk 0:00:06]}  Rc2 {[%clk 0:00:48]} 35. Rxa7 {[%clk 0:00:06]}  Bd2 {[%clk 0:00:47]} 36. Kf1 {[%clk 0:00:07]}  Bf4 {[%clk 0:00:45]} 37. Ra6 {[%clk 0:00:05]}  Be5 {[%clk 0:00:43]} 38. Nf5 {[%clk 0:00:04]}  Rc6 {[%clk 0:00:40]} 39. a4 {[%clk 0:00:04]}  Bc7 {[%clk 0:00:36]} 40. Kg2 {[%clk 0:00:04]}  Kg5 {[%clk 0:00:35]} 41. a5 {[%clk 0:00:04]}  Re6 {[%clk 0:00:32]} 42. axb6 {[%clk 0:00:05]}  Bxb6 {[%clk 0:00:32]} 43. Nd4 {[%clk 0:00:04]}  Rd6 {[%clk 0:00:30]} 44. Nb5 {[%clk 0:00:04]}  Re6 {[%clk 0:00:27]} 45. Na3 {[%clk 0:00:04]}  Kf4 {[%clk 0:00:20]} 46. Nc4 {[%clk 0:00:05]}  Rxe4 {[%clk 0:00:17]} 47. Rxb6 {[%clk 0:00:05]} 1-0


[Site "https://www.chess.com"]

[Event "Titled Tuesday Blitz July 18 Early 2023"]
[White "Der_Balak_3Halak"]
[Black "Svane, Frederik"]
[BlackFideId "12923044"]
[WhiteElo "2604"]
[BlackElo "2960"]
[Result "0-1"]
[Round "2"]
[TimeControl "180+2"]
[Date "2023.07.18"]
[WhiteClock "0:00:00"]
[BlackClock "0:01:16"]
[Board "19"]

1. e4 {[%clk 0:03:00]}  c5 {[%clk 0:02:59]} 2. Nf3 {[%clk 0:03:00]}  d6 {[%clk 0:02:59]} 3. Bb5+ {[%clk 0:03:00]}  Nd7 {[%clk 0:02:59]} 4. O-O {[%clk 0:02:59]}  a6 {[%clk 0:02:57]} 5. Bxd7+ {[%clk 0:02:59]}  Bxd7 {[%clk 0:02:58]} 6. c3 {[%clk 0:03:00]}  Nf6 {[%clk 0:02:57]} 7. Re1 {[%clk 0:02:59]}  Bc6 {[%clk 0:02:57]} 8. d4 {[%clk 0:03:00]}  cxd4 {[%clk 0:02:57]} 9. cxd4 {[%clk 0:02:59]}  Bxe4 {[%clk 0:02:57]} 10. Bg5 {[%clk 0:02:58]}  Bg6 {[%clk 0:02:35]} 11. Bxf6 {[%clk 0:02:55]}  gxf6 {[%clk 0:02:34]} 12. d5 {[%clk 0:02:48]}  Bg7 {[%clk 0:02:31]} 13. Nc3 {[%clk 0:02:35]}  f5 {[%clk 0:02:31]} 14. Qb3 {[%clk 0:02:28]}  O-O {[%clk 0:02:24]} 15. Qxb7 {[%clk 0:02:16]}  Rb8 {[%clk 0:02:14]} 16. Qxa6 {[%clk 0:01:37]}  Rxb2 {[%clk 0:02:13]} 17. Qa3 {[%clk 0:01:34]}  Rb7 {[%clk 0:02:09]} 18. Rab1 {[%clk 0:01:27]}  Rxb1 {[%clk 0:02:04]} 19. Nxb1 {[%clk 0:01:14]}  Bf6 {[%clk 0:01:50]} 20. Qa7 {[%clk 0:01:04]}  Qa8 {[%clk 0:01:45]} 21. Qxa8 {[%clk 0:00:29]}  Rxa8 {[%clk 0:01:46]} 22. a3 {[%clk 0:00:29]}  f4 {[%clk 0:01:45]} 23. h4 {[%clk 0:00:19]}  Ra5 {[%clk 0:01:44]} 24. Rd1 {[%clk 0:00:12]}  Be4 {[%clk 0:01:39]} 25. Nbd2 {[%clk 0:00:09]}  Bxd5 {[%clk 0:01:39]} 26. Rc1 {[%clk 0:00:03]}  Rxa3 {[%clk 0:01:36]} 27. Rc8+ {[%clk 0:00:03]}  Kg7 {[%clk 0:01:37]} 28. h5 {[%clk 0:00:03]}  Ra1+ {[%clk 0:01:27]} 29. Kh2 {[%clk 0:00:03]}  Ra5 {[%clk 0:01:28]} 30. Kh3 {[%clk 0:00:03]}  Be6+ {[%clk 0:01:28]} 31. g4 {[%clk 0:00:02]}  fxg3+ {[%clk 0:01:27]} 32. Kxg3 {[%clk 0:00:02]}  Bxc8 {[%clk 0:01:26]} 33. Ne4 {[%clk 0:00:02]}  Rxh5 {[%clk 0:01:23]} 34. Nxf6 {[%clk 0:00:02]}  Kxf6 {[%clk 0:01:23]} 35. Nh4 {[%clk 0:00:02]}  Rxh4 {[%clk 0:01:23]} 36. f4 {[%clk 0:00:03]}  Kf5 {[%clk 0:01:24]} 37. Kxh4 {[%clk 0:00:03]}  Kxf4 {[%clk 0:01:25]} 38. Kh5 {[%clk 0:00:04]}  Bf5 {[%clk 0:01:25]} 39. Kh4 {[%clk 0:00:04]}  d5 {[%clk 0:01:23]} 40. Kh5 {[%clk 0:00:04]}  d4 {[%clk 0:01:24]} 41. Kh4 {[%clk 0:00:04]}  d3 {[%clk 0:01:19]} 42. Kh5 {[%clk 0:00:05]}  d2 {[%clk 0:01:17]} 43. Kh4 {[%clk 0:00:05]}  Be6 {[%clk 0:01:15]} 44. Kh5 {[%clk 0:00:05]}  d1=Q+ {[%clk 0:01:16]} 45. Kh6 {[%clk 0:00:06]}  Qg4 {[%clk 0:01:15]} 46. Kxh7 {[%clk 0:00:06]}  Kf5 {[%clk 0:01:15]} 47. Kh8 {[%clk 0:00:00]}  Kf6 {[%clk 0:01:16]} 0-1


[Site "https://www.chess.com"]

[Event "Titled Tuesday Blitz July 18 Early 2023"]
[White "Pranav, V"]
[Black "HamedWafa4"]
[WhiteFideId "25060783"]
[WhiteElo "2954"]
[BlackElo "2603"]
[Result "1-0"]
[Round "2"]
[TimeControl "180+2"]
[Date "2023.07.18"]
[WhiteClock "0:02:23"]
[BlackClock "0:00:00"]
[Board "20"]

1. e4 {[%clk 0:03:00]}  e5 {[%clk 0:02:55]} 2. Nf3 {[%clk 0:03:00]}  Nc6 {[%clk 0:02:54]} 3. Bb5 {[%clk 0:02:59]}  a6 {[%clk 0:02:54]} 4. Ba4 {[%clk 0:02:59]}  Nf6 {[%clk 0:02:53]} 5. O-O {[%clk 0:02:59]}  Be7 {[%clk 0:02:53]} 6. Re1 {[%clk 0:02:58]}  b5 {[%clk 0:02:52]} 7. Bb3 {[%clk 0:02:58]}  O-O {[%clk 0:02:53]} 8. h3 {[%clk 0:02:57]}  Bb7 {[%clk 0:02:47]} 9. d3 {[%clk 0:02:56]}  d6 {[%clk 0:02:45]} 10. a3 {[%clk 0:02:54]}  Na5 {[%clk 0:02:43]} 11. Ba2 {[%clk 0:02:53]}  c5 {[%clk 0:02:44]} 12. Nbd2 {[%clk 0:02:54]}  Nc6 {[%clk 0:02:44]} 13. Nf1 {[%clk 0:02:53]}  Bc8 {[%clk 0:02:44]} 14. Ng3 {[%clk 0:02:49]}  Be6 {[%clk 0:02:44]} 15. Bb1 {[%clk 0:02:46]}  h6 {[%clk 0:02:41]} 16. c3 {[%clk 0:02:46]}  Re8 {[%clk 0:02:38]} 17. Bc2 {[%clk 0:02:45]}  Bf8 {[%clk 0:02:35]} 18. Be3 {[%clk 0:02:41]}  d5 {[%clk 0:02:33]} 19. exd5 {[%clk 0:02:40]}  Nxd5 {[%clk 0:02:34]} 20. Bd2 {[%clk 0:02:41]}  Nf4 {[%clk 0:02:30]} 21. Nxe5 {[%clk 0:02:24]}  Nxe5 {[%clk 0:02:09]} 22. Bxf4 {[%clk 0:02:23]}  Ng6 {[%clk 0:00:00]} 23. Be3 {[%clk 0:02:23]} 1-0


[Site "https://www.chess.com"]